{"text_format":"1","workbook":"xlsx","n_sheets":1,"sheets":["PF-ZUS"],"not_rendered":{"charts":0,"images":0,"macros":1,"external_links":0,"defined_names":1,"comments":0,"pivot_tables":0},"unopened":[],"bounds":{"document_bytes":16777216,"sheet_cells":100000,"rows_first":2000,"rows_last":500,"rows_between":2000,"halvings":0,"cell_chars":16384,"cell_head_chars":4096},"cells_cut":0,"cells_raw":0,"read":"whole","date_system":"1900"}

{"sheet":"PF-ZUS","index":0,"n_rows":205,"n_cols":12,"rows_kept":205,"cut":false,"hidden":false,"merged":[[195,3,195,4],[196,3,196,4],[197,3,197,4],[198,3,198,4],[190,3,190,4],[191,3,191,4],[192,3,192,4],[193,3,193,4],[194,3,194,4],[189,3,189,4],[98,3,98,4],[97,5,97,11],[188,5,188,11],[186,0,186,3],[100,3,100,4],[101,3,101,4],[102,3,102,4],[103,3,103,4],[99,3,99,4],[187,3,188,4],[187,0,188,0],[107,3,108,3],[107,4,108,4],[108,5,108,11],[107,0,108,0],[0,5,0,8],[14,4,14,8],[15,0,17,11],[21,5,21,11],[106,0,106,3],[20,0,21,0],[20,3,21,3],[20,4,21,4],[96,0,97,0],[96,3,97,4],[4,5,4,8],[20,1,21,1],[20,2,21,2],[107,1,108,1],[107,2,108,2],[96,1,97,1],[96,2,97,2],[187,1,188,1],[187,2,188,2]]}
[2026]
[]
[]
[null,null,null,null,null,null,null,null,null,null,null,"PF-ZUS"]
[]
["Część",null,null,"…….",{"$f":"IF(D6=\"\",\"<- Proszę uzupełnić dane dot. częśći budżetowej\",\"\")","v":""}]
[null,null,null,"(nr, nazwa)"]
["Dział",null,null,"…….",{"$f":"IF(D8=\"\",\"<- Proszę uzupełnić dane dot. działu\",\"\")","v":""}]
[null,null,null,"(nr, nazwa)"]
["Rozdział",null,null,"…….",{"$f":"IF(D10=\"\",\"<- Proszę uzupełnić dane dot. rozdziału\",\"\")","v":""}]
[null,null,null,"(nr, nazwa)"]
["Jednostka",null,null,"……."]
[null,null,null,"(nazwa Jednostki)"]
[]
[]
["\nPROJEKT PLANU FINANSOWEGO ZAKŁADU UBEZPIECZEŃ SPOŁECZNYCH"]
[]
[]
[]
["Część A. Plan finansowy w układzie memoriałowym"]
["Lp.","CHAPTER_CODE","UATTRIBUTE01","Wyszczególnienie","Paragraf 1)","Wstępne wykonanie / wykonanie *) \nw ……... r.\n(rok n-2)","Ustawa budżetowa na ………. r. **)\n(rok n-1)","Przewidywane wykonanie w ………. r.\n(rok n-1)","Projekt planu na ………. r.\n(rok n)","Projekt planu na ………. r.\n(rok n+1)","Projekt planu na ………. r.\n(rok n+2)","Projekt planu na ………. r.\n(rok n+3)"]
[null,null,null,null,null,"w tysiącach złotych"]
[1,null,null,2,3,4,5,6,7,8,9,10]
["I","PFZUS.A1_1","PFZUS.A1_1.I","STAN NA POCZĄTEK ROKU","x","x","x","x","x","x","x","x"]
[1,"PFZUS.A1_1","PFZUS.A1_1.I.1","Środki pieniężne","x"]
[2,"PFZUS.A1_1","PFZUS.A1_1.I.2","Inne aktywa finansowe 2)","x"]
[3,"PFZUS.A1_1","PFZUS.A1_1.I.3","Należności","x"]
[4,"PFZUS.A1_1","PFZUS.A1_1.I.4","Zapasy","x"]
[5,"PFZUS.A1_1","PFZUS.A1_1.I.5","Zobowiązania, w tym: ","x"]
["5.1","PFZUS.A1_1","PFZUS.A1_1.I.5.1","   - z tytułu odsetek za nieprzekazane składki do otwartych funduszy emerytalnych","x"]
["II","PFZUS.A1_1","PFZUS.A1_1.II","PRZYCHODY OGÓŁEM","x",{"$f":"SUM(F32,F33,F34,F38,F44,F46)","v":0},{"$f":"SUM(G32,G33,G34,G38,G44,G46)","v":0},0,0,0,0,0]
[1,"PFZUS.A1_1","PFZUS.A1_1.II.1"," Odpis z Funduszu Ubezpieczeń Społecznych","297"]
[2,"PFZUS.A1_1","PFZUS.A1_1.II.2"," Odpis z Funduszu Emerytur Pomostowych","297"]
[3,"PFZUS.A1_1","PFZUS.A1_1.II.3"," Przychody z tytułu poboru i dochodzenia składek innych niż na FUS z tego:","x",{"$f":"SUM(F35,F36,F37)","v":0},{"$f":"SUM(G35,G36,G37)","v":0},0,0,0,0,0]
["3.1","PFZUS.A1_1","PFZUS.A1_1.II.3.1","   - przychody z tytułu poboru i dochodzenia składek na otwarte fundusze emerytalne","x"]
["3.2","PFZUS.A1_1","PFZUS.A1_1.II.3.2","   - przychody z tytułu poboru i dochodzenia składek na Fundusz Pracy, Fundusz Solidarnościowy  i Fundusz Gwarantowanych Świadczeń Pracowniczych","x"]
["3.3","PFZUS.A1_1","PFZUS.A1_1.II.3.3","   - przychody z tytułu poboru i dochodzenia składek na ubezpieczenie zdrowotne","x"]
[4,"PFZUS.A1_1","PFZUS.A1_1.II.4"," Przychody z tytułu zwrotu kosztów obsługi zadań zleconych Zakładowi do realizacji:","x",{"$f":"SUM(F39,F40,F41,F42,F43)","v":0},{"$f":"SUM(G39,G40,G41,G42,G43)","v":0},0,0,0,0,0]
["4.1","PFZUS.A1_1","PFZUS.A1_1.II.4.1","   - rent socjalnych","x"]
["4.2","PFZUS.A1_1","PFZUS.A1_1.II.4.2","   - zasiłków i świadczeń przedemerytalnych","x"]
["4.3","PFZUS.A1_1","PFZUS.A1_1.II.4.3","   - świadczeń na rzecz kombatantów","x"]
["4.4","PFZUS.A1_1","PFZUS.A1_1.II.4.4","   - świadczeń zbiegowych realizowanych przez KRUS","x"]
["4.5","PFZUS.A1_1","PFZUS.A1_1.II.4.5","   - obsługa pozostałych zadań","x"]
[5,"PFZUS.A1_1","PFZUS.A1_1.II.5"," Przychody finansowe","x"]
["5.1","PFZUS.A1_1","PFZUS.A1_1.II.5.1","   - odsetki","x"]
[6,"PFZUS.A1_1","PFZUS.A1_1.II.6"," Pozostałe przychody","x"]
["III","PFZUS.A1_1","PFZUS.A1_1.III","KOSZTY OGÓŁEM","x",{"$f":"SUM(F48,F73,F76)","v":0},0,0,0,0,0,0]
[1,"PFZUS.A1_1","PFZUS.A1_1.III.1","Koszty według rodzaju ","x",{"$f":"SUM(F49,F51,F52,F57,F61,F65,F72)","v":0},0,0,0,0,0,0]
["1.1","PFZUS.A1_1","PFZUS.A1_1.III.1.1","amortyzacja, w tym:","472"]
[null,"PFZUS.A1_1","PFZUS.A1_1.III.1.1.1","  - zakup wyposażenia o niskiej wartości"]
["1.2","PFZUS.A1_1","PFZUS.A1_1.III.1.2","materiały i energia","400"]
["1.3","PFZUS.A1_1","PFZUS.A1_1.III.1.3","usługi obce","x",{"$f":"SUM(F53:F56)","v":0},{"$f":"SUM(G53:G56)","v":0},0,0,0,0,0]
["1.3.1","PFZUS.A1_1","PFZUS.A1_1.III.1.3.1","  - usługi pocztowe i bankowe","400"]
["1.3.2","PFZUS.A1_1","PFZUS.A1_1.III.1.3.2","  - usługi telekomunikacyjne","x"]
["1.3.3","PFZUS.A1_1","PFZUS.A1_1.III.1.3.3","  - usługi związane z przetwarzaniem danych","x"]
["1.3.4","PFZUS.A1_1","PFZUS.A1_1.III.1.3.4","  - pozostałe","x"]
["1.4","PFZUS.A1_1","PFZUS.A1_1.III.1.4","podatki i opłaty, w tym:","x"]
["1.4.1","PFZUS.A1_1","PFZUS.A1_1.III.1.4.1","  - podatki stanowiące źródło dochodów własnych jednostek samorządu terytorialnego"]
["1.4.2","PFZUS.A1_1","PFZUS.A1_1.III.1.4.2","  - opłaty za wieczyste użytkowanie gruntów","x"]
["1.4.3","PFZUS.A1_1","PFZUS.A1_1.III.1.4.3","  - opłaty urzędowe","x"]
["1.5","PFZUS.A1_1","PFZUS.A1_1.III.1.5","wynagrodzenia i uposażenia","401-410, 417",{"$f":"SUM(F62:F64)","v":0},{"$f":"SUM(G62:G64)","v":0},0,0,0,0,0]
["1.5.1","PFZUS.A1_1","PFZUS.A1_1.III.1.5.1","  - wynagrodzenia osobowe","401"]
["1.5.2","PFZUS.A1_1","PFZUS.A1_1.III.1.5.2","  - uposażenia"]
["1.5.3","PFZUS.A1_1","PFZUS.A1_1.III.1.5.3","  - pozostałe","x"]
["1.6","PFZUS.A1_1","PFZUS.A1_1.III.1.6","ubezpieczenia społeczne i inne świadczenia","x",{"$f":"SUM(F66:F71)","v":0},{"$f":"SUM(G66:G71)","v":0},0,0,0,0,0]
["1.6.1","PFZUS.A1_1","PFZUS.A1_1.III.1.6.1","  - składki na ubezpieczenie społeczne","411"]
["1.6.2","PFZUS.A1_1","PFZUS.A1_1.III.1.6.2","  - składki na Fundusz Pracy oraz Fundusz Solidarnościowy","412"]
["1.6.3","PFZUS.A1_1","PFZUS.A1_1.III.1.6.3","  - świadczenia socjalne"]
["1.6.4","PFZUS.A1_1","PFZUS.A1_1.III.1.6.4","  - składki na Fundusz Emerytur Pomostowych","478"]
["1.6.5","PFZUS.A1_1","PFZUS.A1_1.III.1.6.6","  - wpłaty na pracownicze plany kapitałowe","471"]
["1.6.6","PFZUS.A1_1","PFZUS.A1_1.III.1.6.5","  - inne","x"]
["1.7","PFZUS.A1_1","PFZUS.A1_1.III.1.7","pozostałe","x"]
[2,"PFZUS.A1_1","PFZUS.A1_1.III.2","Koszty finansowe","x",{"$f":"SUM(F74:F75)","v":0},{"$f":"SUM(G74:G75)","v":0},0,0,0,0,0]
["2.1","PFZUS.A1_1","PFZUS.A1_1.III.2.1","  - obsługa długu","x"]
["2.2","PFZUS.A1_1","PFZUS.A1_1.III.2.2","  - inne","x"]
[3,"PFZUS.A1_1","PFZUS.A1_1.III.3","Pozostałe koszty","x"]
["IV","PFZUS.A1_1","PFZUS.A1_1.IV","WYNIK BRUTTO (poz. II - III) ","x",{"$f":"(F31-F47)","v":0},0,0,0,0,0,0]
["V","PFZUS.A1_1","PFZUS.A1_1.V","OBOWIĄZKOWE OBCIĄŻENIA WYNIKU FINANSOWEGO","x"]
["VI","PFZUS.A1_1","PFZUS.A1_1.VI","WYNIK NETTO ( IV - V) ","x",{"$f":"(F77-F78)","v":0},{"$f":"(G77-G78)","v":0},0,0,0,0,0]
["VII","PFZUS.A1_1","PFZUS.A1_1.VII","Nakłady na budowę, ulepszenie i zakup środków trwałych oraz wartości niematerialnych i prawnych","x"]
["VIII","PFZUS.A1_1","PFZUS.A1_1.VIII","STAN NA KONIEC ROKU:","x","x","x","x","x","x","x","x"]
[1,"PFZUS.A1_1","PFZUS.A1_1.VIII.1","Środki pieniężne","x"]
[2,"PFZUS.A1_1","PFZUS.A1_1.VIII.2","Inne aktywa finansowe 2)","x"]
[3,"PFZUS.A1_1","PFZUS.A1_1.VIII.3","Należności","x"]
[4,"PFZUS.A1_1","PFZUS.A1_1.VIII.4","Zapasy","x"]
[5,"PFZUS.A1_1","PFZUS.A1_1.VIII.5","Zobowiązania, w tym: ","x"]
["5.1","PFZUS.A1_1","PFZUS.A1_1.VIII.5.1","    - z tytułu odsetek za nieprzekazane składki do otwartych funduszy emerytalnych","x"]
[]
["*) Niepotrzebne skreślić."]
["**) W przypadku dokonania zmian w planie finansowym Zakładu Ubezpieczeń Społecznych na rok N-1 zatwierdzonych uchwałą Rady Nadzorczej ZUS należy zaprezentować plan po zmianach."]
["1) Klasyfikacja paragrafów wydatków jest czterocyfrowa; czwartą cyfrą jest odpowiednia cyfra od 1 do 9 lub cyfra 0,"]
["   przychody należy ujmować stosując czwarte cyfry właściwe dla klasyfikacji dochodów."]
["2) Należy podać wartość innych niż środki pieniężne w kasie i na rachunkach bankowych aktywów finansowych (np.: papierów wartościowych)."]
[]
[]
["Część B. Dane uzupełniające"]
["Lp.","CHAPTER_CODE","UATTRIBUTE01","Wyszczególnienie",null,"Wstępne wykonanie / wykonanie *) \nw ……... r.\n(rok n-2)","Ustawa budżetowa na ………. r. **)\n(rok n-1)","Przewidywane wykonanie w ………. r.\n(rok n-1)","Projekt planu na ………. r.\n(rok n)","Projekt planu na ………. r.\n(rok n+1)","Projekt planu na ………. r.\n(rok n+2)","Projekt planu na ………. r.\n(rok n+3)"]
[null,null,null,null,null,"w tysiącach złotych"]
[1,null,null,"2",null,"3","4","5","6","7","8","9"]
[null,"PFZUS.B1_1","PFZUS.B1_1.0","ZOBOWIĄZANIA "]
[1,"PFZUS.B1_1","PFZUS.B1_1.1","Inne, w tym:"]
["1.1","PFZUS.B1_1","PFZUS.B1_1.1.1","wymagalne"]
["1.2","PFZUS.B1_1","PFZUS.B1_1.1.2","z tytułu odsetek za nieprzekazane składki do otwartych funduszy emerytalnych"]
[null,"PFZUS.B1_1","PFZUS.B1_1.1.3","LICZBA ZATRUDNIONYCH\n(w przeliczeniu na pełne etaty)"]
[]
[]
["Część C. Dane w układzie kasowym"]
["Lp.","CHAPTER_CODE","UATTRIBUTE01","Wyszczególnienie","Paragraf 1)","Wstępne wykonanie / wykonanie *) \nw ……... r.\n(rok n-2)","Ustawa budżetowa na ………. r. **)\n(rok n-1)","Przewidywane wykonanie w ………. r.\n(rok n-1)","Projekt planu na ………. r.\n(rok n)","Projekt planu na ………. r.\n(rok n+1)","Projekt planu na ………. r.\n(rok n+2)","Projekt planu na ………. r.\n(rok n+3)"]
[null,null,null,null,null,"w tysiącach złotych"]
[1,null,null,2,3,4,5,6,7,8,9,10]
["I","PFZUS.C1_1","PFZUS.C1_1.I","STAN ŚRODKÓW PIENIĘZNYCH NA POCZĄTEK ROKU:"]
["II","PFZUS.C1_1","PFZUS.C1_1.II","DOCHODY","x",{"$f":"SUM(F113,F114,F115,F119,F125,F127)","v":0},{"$f":"SUM(G113,G114,G115,G119,G125,G127)","v":0},0,0,0,0,0]
[1,"PFZUS.C1_1","PFZUS.C1_1.II.1"," Odpis z Funduszu Ubezpieczeń Społecznych","297"]
[2,"PFZUS.C1_1","PFZUS.C1_1.II.2"," Odpis z Funduszu Emerytur Pomostowych","297"]
[3,"PFZUS.C1_1","PFZUS.C1_1.II.3"," Dochody z tytułu poboru i dochodzenia składek innych niż na FUS z tego:","x",{"$f":"SUM(F116,F117,F118)","v":0},{"$f":"SUM(G116,G117,G118)","v":0},0,0,0,0,0]
["3.1","PFZUS.C1_1","PFZUS.C1_1.II.3.1","   - dochody z tytułu poboru i dochodzenia składek na otwarte fundusze emerytalne","x"]
["3.2","PFZUS.C1_1","PFZUS.C1_1.II.3.2","   - dochody z tytułu poboru i dochodzenia składek na Fundusz Pracy, Fundusz Solidarnościowy i Fundusz Gwarantowanych Świadczeń Pracowniczych","x"]
["3.3","PFZUS.C1_1","PFZUS.C1_1.II.3.3","   - dochody z tytułu poboru i dochodzenia składek na ubezpieczenie zdrowotne","x"]
[4,"PFZUS.C1_1","PFZUS.C1_1.II.4"," Dochody z tytułu zwrotu kosztów obsługi zadań zleconych Zakładowi do realizacji:","x",{"$f":"SUM(F120:F121,F122,F123:F123)+F124","v":0},{"$f":"SUM(G120,G121,G122,G123,G124)","v":0},0,0,0,0,0]
["4.1","PFZUS.C1_1","PFZUS.C1_1.II.4.1","   - rent socjalnych","x"]
["4.2","PFZUS.C1_1","PFZUS.C1_1.II.4.2","   - zasiłków i świadczeń przedemerytalnych","x"]
["4.3","PFZUS.C1_1","PFZUS.C1_1.II.4.3","   - świadczeń na rzecz kombatantów","x"]
["4.4","PFZUS.C1_1","PFZUS.C1_1.II.4.4","   - świadczeń zbiegowych realizowanych przez KRUS","x"]
["4.5","PFZUS.C1_1","PFZUS.C1_1.II.4.5","   - obsługa pozostałych zadań","x"]
[5,"PFZUS.C1_1","PFZUS.C1_1.II.5"," Dochody finansowe","x"]
["5.1","PFZUS.C1_1","PFZUS.C1_1.II.5.1","   - odsetki","x"]
[6,"PFZUS.C1_1","PFZUS.C1_1.II.6"," Pozostałe dochody","x"]
["III","PFZUS.C1_1","PFZUS.C1_1.III","WYDATKI","x",{"$f":"SUM(F138,F139,F140,F145,F149,F153,F160,F161,F164,F165)","v":0},0,0,0,0,0,0]
[null,"PFZUS.C1_1","PFZUS.C1_1.III.0","w tym: ","x",{"$f":"SUM(F130,F131,F132,F133,F134,F135,F136,F137)","v":0},{"$f":"SUM(G130,G131,G132,G133,G134,G135,G136,G137)","v":0},0,0,0,0,0]
["III.A","PFZUS.C1_1","PFZUS.C1_1.III.A","  - finansowanie z UE pochodzące z BP 3)","x"]
["III.B","PFZUS.C1_1","PFZUS.C1_1.III.B","  - finansowanie z UE pochodzące z BŚE","x"]
["III.C","PFZUS.C1_1","PFZUS.C1_1.III.C","  - finansowanie z EFTA pochodzące z BP  4)","x"]
["III.D","PFZUS.C1_1","PFZUS.C1_1.III.D","  - finansowanie z EFTA pochodzące z BŚE","x"]
["III.E","PFZUS.C1_1","PFZUS.C1_1.III.E","  - finansowanie zadań w ramach KPO – część grantowa","x"]
["III.F","PFZUS.C1_1","PFZUS.C1_1.III.F","  - współfinansowanie krajowe z BP w ramach projektów UE 5)","x"]
["III.G","PFZUS.C1_1","PFZUS.C1_1.III.G","  - współfinansowanie krajowe z BP w ramach projektów EFTA 6)","x"]
["III.H","PFZUS.C1_1","PFZUS.C1_1.III.H","  - współfinansowanie krajowe z innych źródeł w ramach projektów UE 5)","x"]
[1,"PFZUS.C1_1","PFZUS.C1_1.III.1","Zakup wyposażenia o niskiej wartości","400"]
[2,"PFZUS.C1_1","PFZUS.C1_1.III.2","Materiały i energia","400"]
["2.1","PFZUS.C1_1","PFZUS.C1_1.III.2.1","usługi obce","x",{"$f":"SUM(F141,F142,F143,F144)","v":0},{"$f":"SUM(G141,G142,G143,G144)","v":0},0,0,0,0,0]
["2.1.1","PFZUS.C1_1","PFZUS.C1_1.III.2.1.1","  - usługi pocztowe i bankowe","400"]
["2.1.2","PFZUS.C1_1","PFZUS.C1_1.III.2.1.2","  - usługi telekomunikacyjne","x"]
["2.1.3","PFZUS.C1_1","PFZUS.C1_1.III.2.1.3","  - usługi związane z przetwarzaniem danych","x"]
["2.1.4","PFZUS.C1_1","PFZUS.C1_1.III.2.1.4","  - pozostałe","x"]
["2.2","PFZUS.C1_1","PFZUS.C1_1.III.2.2","podatki i opłaty, w tym:","x"]
["2.2.1","PFZUS.C1_1","PFZUS.C1_1.III.2.2.1","  - podatki stanowiące źródło dochodów własnych  jednostek samorządu terytorialnego","x"]
["2.2.2","PFZUS.C1_1","PFZUS.C1_1.III.2.2.2","  - opłaty za wieczyste użytkowanie gruntów","x"]
["2.2.3","PFZUS.C1_1","PFZUS.C1_1.III.2.2.3","  - opłaty urzędowe","x"]
["2.3","PFZUS.C1_1","PFZUS.C1_1.III.2.3","wynagrodzenia i uposażenia","401-410, 417",{"$f":"SUM(F150:F152)","v":0},{"$f":"SUM(G150:G152)","v":0},0,0,0,0,0]
["2.3.1","PFZUS.C1_1","PFZUS.C1_1.III.2.3.1","  - wynagrodzenia osobowe","401"]
["2.3.2","PFZUS.C1_1","PFZUS.C1_1.III.2.3.2"," - uposażenia"]
["2.3.3","PFZUS.C1_1","PFZUS.C1_1.III.2.3.3","  - pozostałe","x"]
["2.4","PFZUS.C1_1","PFZUS.C1_1.III.2.4","ubezpieczenia społeczne i inne świadczenia","x",{"$f":"SUM(F154,F155,F156,F157,F158,F159)","v":0},{"$f":"SUM(G154,G155,G156,G157,G158,G159)","v":0},0,0,0,0,0]
["2.4.1","PFZUS.C1_1","PFZUS.C1_1.III.2.4.1","  - składki na ubezpieczenie społeczne","411"]
["2.4.2","PFZUS.C1_1","PFZUS.C1_1.III.2.4.2","  - składki na Fundusz Pracy oraz Fundusz Solidarnościowy","412"]
["2.4.3","PFZUS.C1_1","PFZUS.C1_1.III.2.4.3","  - świadczenia socjalne"]
["2.4.4","PFZUS.C1_1","PFZUS.C1_1.III.2.4.4","  - składki na Fundusz Emerytur Pomostowych","478"]
["2.4.5","PFZUS.C1_1","PFZUS.C1_1.III.2.4.6","  - wpłaty na pracownicze plany kapitałowe","471"]
["2.4.6","PFZUS.C1_1","PFZUS.C1_1.III.2.4.5","  - inne","x"]
["2.5","PFZUS.C1_1","PFZUS.C1_1.III.2.5","pozostałe","x"]
[3,"PFZUS.C1_1","PFZUS.C1_1.III.3","Wydatki finansowe","x",{"$f":"SUM(F162:F163)","v":0},{"$f":"SUM(G162:G163)","v":0},0,0,0,0,0]
["3.1","PFZUS.C1_1","PFZUS.C1_1.III.3.1","  - obsługa długu","x"]
["3.2","PFZUS.C1_1","PFZUS.C1_1.III.3.2","  - inne","x"]
[4,"PFZUS.C1_1","PFZUS.C1_1.III.4","Pozostałe wydatki","x"]
[5,"PFZUS.C1_1","PFZUS.C1_1.III.5","Wydatki majątkowe","x"]
["IV","PFZUS.C1_1","PFZUS.C1_1.IV","WYNIK  (II-III)","x",{"$f":"(F112-F128)","v":0},{"$f":"(G112-G128)","v":0},0,0,0,0,0]
["V","PFZUS.C1_1","PFZUS.C1_1.V","Kasowo zrealizowane przychody 7)",null,{"$f":"SUM(F168:F172)","v":0},{"$f":"SUM(G168:G172)","v":0},0,{"$f":"SUM(I168:I172)","v":0},{"$f":"SUM(J168:J172)","v":0},0,0]
[1,"PFZUS.C1_1","PFZUS.C1_1.V.1","Zaciągnięte kredyty i pożyczki"]
[2,"PFZUS.C1_1","PFZUS.C1_1.V.2","Przychody z prywatyzacji"]
[3,"PFZUS.POZ_C_1","PFZUS.POZ_C_1"]
[4,"PFZUS.POZ_C_1","PFZUS.POZ_C_1"]
[5,"PFZUS.POZ_C_1","PFZUS.POZ_C_1"]
["VI","PFZUS.C1_2","PFZUS.C1_2.VI","Kasowo zrealizowane rozchody 8)",null,{"$f":"SUM(F174:F177)","v":0},{"$f":"SUM(G174:G177)","v":0},0,{"$f":"SUM(I174:I177)","v":0},{"$f":"SUM(J174:J177)","v":0},{"$f":"SUM(K174:K177)","v":0},{"$f":"SUM(L174:L177)","v":0}]
[1,"PFZUS.C1_2","PFZUS.C1_2.VI.1","Spłata kredytów i pożyczek"]
[2,"PFZUS.POZ_C_2","PFZUS.POZ_C_2"]
[3,"PFZUS.POZ_C_2","PFZUS.POZ_C_2"]
[4,"PFZUS.POZ_C_2","PFZUS.POZ_C_2"]
["VII","PFZUS.C1_3","PFZUS.C1_3.VII","STAN ŚRODKÓW PIENIĘŻNYCH NA KONIEC ROKU","x"]
[]
["3) W tej pozycji należy wykazać środki w paragrafach z czwartą cyfrą 1, 8."]
["4) W tej pozycji należy wykazać środki w paragrafach z czwartą cyfrą 5."]
["5) W tej pozycji należy wykazać środki w paragrafach z czwartą cyfrą 2 i 9."]
["6) W tej pozycji należy wykazać środki w paragrafach z czwartą cyfrą 6."]
["7) W rozumieniu art. 5 ust. 1 pkt 4 ustawy o finansach publicznych."]
["8) W rozumieniu art. 6 ust. 2 ustawy o finansach publicznych."]
[]
["Część D. Dane uzupełniające"]
["Lp.","CHAPTER_CODE","UATTRIBUTE01","Wyszczególnienie",null,"Stan na dzień \n31 grudnia \nroku ……\n(n-2)","Ustawa budżetowa na ………. r.\n(rok n-1)","Przewidywane wykonanie w ………. r.\n(rok n-1)","Projekt planu na ………. r.\n(rok n)","Projekt planu na ………. r.\n(rok n+1)","Projekt planu na ………. r.\n(rok n+2)","Projekt planu na ………. r.\n(rok n+3)"]
[null,null,null,null,null,"w tysiącach złotych"]
[1,null,null,"2",null,"3","4","5","6","7","8","9"]
[null,"PFZUS.D1_1","PFZUS.D1_1.0","ZOBOWIĄZANIA \nwedług wartości nominalnej"]
[1,"PFZUS.D1_1","PFZUS.D1_1.1","Papiery wartościowe"]
[2,"PFZUS.D1_1","PFZUS.D1_1.2","Kredyty i pożyczki, w tym zaciągnięte od:"]
[null,"PFZUS.D1_1","PFZUS.D1_1.2.1","    -  sektora finansów publicznych"]
[null,"PFZUS.D1_1","PFZUS.D1_1.2.2","    -  pozostałych"]
[3,"PFZUS.D1_1","PFZUS.D1_1.3","Depozyty"]
[4,"PFZUS.D1_1","PFZUS.D1_1.4","Inne w tym:"]
["4.1","PFZUS.D1_1","PFZUS.D1_1.4.1","zobowiązania wymagalne"]
["4.2","PFZUS.D1_1","PFZUS.D1_1.4.2","z tytułu odsetek za nieprzekazane składki do otwartych funduszy emerytalnych"]
[]
[]
["sporządził ....................................................................."]
["                         (imię i nazwisko, stanowisko służbowe)"]
["nr telefonu .........................     adres e-mail ........................................"]
["data .........................   podpis ................................ "]